Cogmind - Beta 10.2 @@@ ROGUE MODE // 2021.02.05 @ 17:41:37 Player: cavemonk Result: Destroyed by Y-45 Defender with Beam Rifle Performance ------------- Evolutions (0) 0 Regions Visited (2) 400 Robots Destroyed (19) 95 Value Destroyed (268) 268 Prototype IDs (0) 0 Alien Tech Used (0) 0 Bonus (0) 0 TOTAL SCORE: 763 Bonus ------- None Cogmind --------- Core Integrity 0/250 Matter 173/300 Energy 94/100 System Corruption 0% Temperature Cool (9) Movement Core (600) Ox11 Location -10/Mines Parts ------- > --- POWER (1) -------- (None) > --- PROPULSION (2) --- (None) > --- UTILITY (2) ------ Large Storage Unit Large Storage Unit > --- WEAPON (2) ------- Assault Rifle > --- INVENTORY (16) --- Light Ion Engine Light Ion Engine Light Treads Medium Storage Unit Medium Storage Unit Medium Storage Unit High-capacity Battery (400) High-capacity Matter Pod (111) Improved Terrain Scanner Grenade Launcher Grenade Launcher Mining Claw Peak State ------------ > --- POWER ------------ Ion Engine > --- PROPULSION ------- Light Treads Wheel > --- UTILITY ---------- Large Storage Unit Improved Terrain Scanner > --- WEAPON ----------- Light Cannon Hammer > --- INVENTORY -------- Light Ion Engine Light Treads Medium Storage Unit Medium Storage Unit High-capacity Battery High-capacity Matter Pod Assault Rifle Light Cannon Grenade Launcher Grenade Launcher [Rating: 9] Favorites ----------- Power Ion Engine Engine Ion Engine Propulsion Light Treads Treads Light Treads Wheel Wheel Utility Large Storage Unit Device Improved Terrain Scanner Storage Large Storage Unit Weapon Light Cannon Energy Gun Medium Laser Ballistic Gun Assault Rifle Ballistic Cannon Light Cannon Launcher Grenade Launcher Impact Weapon Hammer Build | -11 -10 -10 ------- Run | Scr Mat Min Slots Evolved . | . . . Power . | . . . Propulsion . | . . . Utility . | . . . Weapon . | . . . Parts Attached 37 | 7 19 11 Power 1 | 1 . . Engine 1 | 1 . . Core . | . . . Reactor . | . . . Propulsion 13 | 2 8 3 Treads 7 | 1 4 2 Leg . | . . . Wheel 6 | 1 4 1 Hover . | . . . Flight . | . . . Utility 6 | 2 4 . Device 2 | 1 1 . Storage 4 | 1 3 . Processor . | . . . Hackware . | . . . Protection . | . . . Artifact . | . . . Weapon 17 | 2 7 8 Energy Gun 1 | 1 . . Energy Cannon . | . . . Ballistic Gun 2 | 1 . 1 Ballistic Cannon 9 | . 5 4 Launcher 3 | . . 3 Special Weapon . | . . . Impact Weapon 2 | . 2 . Slashing Weapon . | . . . Piercing Weapon . | . . . Special Melee Weapon . | . . . Unidentified Prototypes . | . . . Parts Lost 8 | . . 8 Power 1 | . . 1 Propulsion 3 | . . 3 Utility . | . . . Weapon 4 | . . 4 Highest Loss Streak 8 | . . 8 Average Slot Usage (%) 98 | . 99 96 Engine 13 | . 14 12 Treads 14 | . 14 15 Wheel 12 | . 13 10 Device 7 | . 9 . Storage 20 | . 18 28 Ballistic Cannon 26 | . 26 24 Naked Turns . | . . . Heaviest Build 43 | 14 43 43 Greatest Support 40 | 10 20 40 Greatest Overweight (x) 4 | 1 4 4 Average Overweight (x) 2 | . 2 3 Largest Inventory Capacity 16 | 6 16 16 Average Capacity 11 | 5 10 16 Most Carried 16 | 6 16 16 Average Carried 10 | 2 9 15 Final Capacity 16 | 6 16 16 Final Carried 16 | 6 16 12 Class Distribution -------------------- 100% | Mutant Dominant Class ---------------- Mutant | -10/Materials Mutant | -10/Mines Resources | -11 -10 -10 ----------- Run | Scr Mat Min Matter Collected 908 | 291 371 246 Remotely . | . . . Salvage Created 537 | 100 371 66 Parts 28 | 6 22 . Haulers Intercepted 2 | . 2 . Recyclers Shooed . | . . . Parts Field Recycled . | . . . Retrieved Matter . | . . . Parts Self-Destructed . | . . . Prevented . | . . . Kills | -11 -10 -10 ------- Run | Scr Mat Min Combat Hostiles Destroyed 10 | . 6 4 Cannons 9 | . 6 3 AOE 1 | . . 1 Classes Destroyed 8 | 2 3 3 Tunneler 2 | 2 . . Hauler 2 | . 2 . Recycler 4 | 1 3 . Watcher 2 | . 2 . Swarmer 6 | . 6 . Grunt 2 | . . 2 Demolisher 1 | . . 1 Assembled 1 | . . 1 Best Kill Streak 5 | 3 5 2 Combat Bots Only 3 | . 3 2 Max Kills in Single Turn 1 | 1 1 1 Gunslinging . | . . . Exploded 1 | . . 1 Melee . | . . . Uniques/NPCs Destroyed . | . . . Combat | -11 -10 -10 -------- Run | Scr Mat Min Damage Taken 1376 | . 253 1123 Core 257 | . 15 242 Absorbed by Shields . | . . . Core Remaining (%) 100 | 100 . . Volleys Fired 54 | 7 33 14 Largest 2 | 2 2 2 Hottest 70 | 70 70 70 Shots Fired 106 | 14 66 26 Gun 15 | 14 . 1 Cannon 90 | . 66 24 Launcher 1 | . . 1 Special . | . . . Kinetic 98 | 7 66 25 Thermal 7 | 7 . . Explosive 1 | . . 1 Electromagnetic . | . . . Robot Hit Streak 9 | 4 9 8 Robot Miss Streak 5 | 3 5 2 Penetration Max . | . . . Secondary Targets . | . . . Shots Hit Robots 65 | 8 39 18 Core Hits 24 | 4 13 7 Critical Hits . | . . . Critical Kills . | . . . Critical Parts Destroyed . | . . . Melee Attacks 3 | . 3 . Impact 3 | . 3 . Slashing . | . . . Piercing . | . . . Sneak Attacks . | . . . Combat Hostiles . | . . . Follow-up Attacks . | . . . Damage Inflicted 1073 | 125 580 368 Guns 137 | 125 . 12 Cannons 846 | . 580 266 Explosions 90 | . . 90 Melee . | . . . Ramming . | . . . Kinetic 909 | 51 580 278 Thermal 74 | 74 . . Explosive 90 | . . 90 Electromagnetic . | . . . Impact . | . . . Slashing . | . . . Piercing . | . . . Highest Corruption . | . . . Average Corruption . | . . . Corruption Purged . | . . . Overload Shots . | . . . Overflow Damage 17 | . . 17 Projectiles 17 | . . 17 Explosions . | . . . Melee . | . . . Knockbacks 9 | . 3 6 Impact . | . . . Kinetic 7 | . 3 4 Secondary 2 | . . 2 Self-Inflicted Damage 10 | . . 10 Shots 1 | . . 1 Rammed . | . . . Targets Rammed . | . . . Kicked . | . . . Crushed . | . . . Highest Temperature 72 | 63 72 36 Average Temperature 24 | 31 25 16 Received Heat Transfer 104 | . . 104 Siege Activations . | . . . Robots Corrupted . | . . . Combat Hostiles . | . . . Parts Fried . | . . . Impact Corruptions . | . . . Robots Melted . | . . . Combat Hostiles . | . . . Parts Melted . | . . . Heat Transferred 222 | 222 . . Parts Sabotaged . | . . . Parts Stolen . | . . . Parts Stripped . | . . . Power Chain Reactions . | . . . Missiles Intercepted . | . . . Alert | -11 -10 -10 ------- Run | Scr Mat Min Peak Influence 198 | 15 198 120 Initial 20 | . 9 20 Average 78 | 7 85 78 Maximum Alert Level . | . . . Low Security (%) 100 | 100 100 100 Level 1 . | . . . Level 2 . | . . . Level 3 . | . . . Level 4 . | . . . Level 5 . | . . . High Security . | . . . Max Security . | . . . Squads Dispatched . | . . . Investigation . | . . . Extermination . | . . . Reinforcement . | . . . Assault . | . . . Garrison . | . . . Intercept . | . . . Construction Impeded . | . . . Haulers Reinforced . | . . . Stealth | -11 -10 -10 --------- Run | Scr Mat Min Distress Signals 1 | . 1 . Communications Jammed . | . . . Distress Signals . | . . . Times Spotted 31 | . 11 20 Peak Tracking Total 9 | . 3 9 Tactical Retreats 4 | . 1 3 Traps | -11 -10 -10 ------- Run | Scr Mat Min Traps Triggered . | . . . Indirectly . | . . . Trap Hack Attempts . | . . . Triggered . | . . . Disarmed . | . . . Reprogrammed . | . . . Reused . | . . . Traps Extracted . | . . . Installed . | . . . Triggered . | . . . Machines | -11 -10 -10 ---------- Run | Scr Mat Min Machines Disabled 1 | . 1 . Max in Single Turn 1 | . 1 . Machines Sabotaged . | . . . Garrisons Compromised . | . . . Overloaded Fab Kills . | . . . Fab Network Shutdowns . | . . . Hacking | -11 -10 -10 --------- Run | Scr Mat Min Machines Accessed 9 | . 9 . Terminals 6 | . 6 . Fabricators . | . . . Repair Stations 1 | . 1 . Recycling Units 2 | . 2 . Scanalyzers . | . . . Garrison Access . | . . . Total Hacks 23 | . 23 . Successful 13 | . 13 . Failed 10 | . 10 . Catastrophic 1 | . 1 . Database Lockouts . | . . . Manual 14 | . 14 . Terminals 17 | . 17 . Fabricators . | . . . Repair Stations 2 | . 2 . Recycling Units 4 | . 4 . Scanalyzers . | . . . Garrison Access . | . . . Terminal Hacks 4 | . 4 . Branch Access Points 1 | . 1 . Terminal Index 1 | . 1 . Hauler Manifests 1 | . 1 . Zone Layout 1 | . 1 . Fabricator Hacks . | . . . Repair Station Hacks 2 | . 2 . Scan Component 1 | . 1 . Repair 1 | . 1 . Recycling Unit Hacks 1 | . 1 . Retrieve Components 1 | . 1 . Scanalyzer . | . . . Garrison Access Hacks . | . . . Unauthorized Hacks 6 | . 6 . Terminals 6 | . 6 . Track 3 | . 3 . Botnet 2 | . 2 . Operators 1 | . 1 . Fabricators . | . . . Repair Stations . | . . . Recycling Units . | . . . Scanalyzers . | . . . Garrison Access . | . . . Data Cores Recovered . | . . . Used . | . . . Hacking Detections 9 | . 9 . Full Trace Events . | . . . Feedback Events . | . . . Feedback Blocked . | . . . Robot Schematics Acquired . | . . . Robots Built . | . . . Matter . | . . . Time . | . . . Total Robot Build Rating . | . . . Part Schematics Acquired . | . . . Parts Built . | . . . Matter . | . . . Time . | . . . Total Part Build Rating . | . . . Parts Repaired 1 | . 1 . Time 26 | . 26 . Parts Recycled . | . . . Recycled Matter . | . . . Retrieved Matter . | . . . Retrieved Components . | . . . Parts Scanalyzed . | . . . Part Schematics Acquired . | . . . Parts Damaged . | . . . Bothacking | -11 -10 -10 ------------ Run | Scr Mat Min Used RIF Installer . | . . . Robots Hacked . | . . . Non-combat . | . . . Combat . | . . . Robot Hacks Applied . | . . . Relay Couplers Released . | . . . Robots Rewired . | . . . Allies Hacked . | . . . Hacks Repelled . | . . . Allies | -11 -10 -10 -------- Run | Scr Mat Min Total Allies . | . . . Largest Group . | . . . Highest-Rated Group . | . . . Highest-Rated Ally . | . . . Total Orders . | . . . Ally Attacks . | . . . Total Damage . | . . . Kills . | . . . Allies Corrupted . | . . . Allies Melted . | . . . Intel | -11 -10 -10 ------- Run | Scr Mat Min Robot Analysis Total . | . . . Derelict Logs Recovered . | . . . Drone Launches . | . . . Drone Recoveries . | . . . Exploration | -11 -10 -10 ------------- Run | Scr Mat Min Turns Passed 1465 | 116 1035 314 Spaces Moved 979 | 90 704 185 Core 1 | 1 . . Treads 40 | . 30 10 Legs . | . . . Wheels 938 | 89 674 175 Hover . | . . . Flight . | . . . Fastest Speed 50 | 50 90 110 Average Speed 107 | 87 105 122 Slowest Speed 180 | 90 180 180 Overloaded Moves . | . . . Propulsion Burnouts . | . . . Robots Hopped . | . . . Cave-ins Triggered . | . . . Exploration Rate (%) 43 | 4 82 43 Regions Visited 2 Branch Regions 1 Pre-discovered Areas . | . . . Known Exits Taken 1 | . 1 . Unknown Exits Taken 1 | 1 . . Scrap Searched 1 | . . 1 Spaces Dug 2 | . 2 . Terrain Destroyed 12 | . 2 10 Melee 2 | . 2 . Projectile . | . . . AOE 10 | . . 10 Terrain Rammed . | . . . Walls Destroyed . | . . . Machines Disabled . | . . . Actions | -11 -10 -10 --------- Run | Scr Mat Min Total 1275 | 110 922 243 Wait 161 | . 132 29 Move 977 | 89 703 185 Hop . | . . . Pick Up 27 | 7 18 2 Fast Attach 10 | 6 4 . Attach 7 | 1 2 4 Detach 2 | . 2 . Swap 20 | . 13 7 Drop 14 | . 12 2 Fire 54 | 7 33 14 Melee 3 | . 3 . Ram . | . . . Kick . | . . . Crush . | . . . Escape Stasis . | . . . Rewire . | . . . Trap . | . . . Miscellaneous . | . . . Route ------- -11/Scrapyard -10/Materials (discovered 4 exits: [*Mat x3] / *Min) -10/Mines History --------- Turn | Location | Event 11 | -11/Scrapyard | Discovered new exit (range 15) 117 | -11/Scrapyard | Entered Materials 299 | -10/Materials | Discovered new exit (range 5) 300 | -10/Materials | Build established: Mutant 495 | -10/Materials | Discovered new exit (range 12) 589 | -10/Materials | Discovered new exit (range 16) 693 | -10/Materials | Identified exit to Mines 727 | -10/Materials | Discovered new exit (range 13) 807 | -10/Materials | Repaired Lgt. Cannon 1152 | -10/Materials | Entered Mines 1387 | -10/Mines | Assembled infested the area 1440 | -10/Mines | Core integrity fell below 50% 1443 | -10/Mines | Core integrity fell below 20% 1466 | -10/Mines | Destroyed by Y-45 Defender with Beam Rifle Last Messages --------------- 01435_ Lgt. Treads destroyed. 01437_ The unstable cave ceiling collapses. 01437_ as-05583 destroyed. 01441_ The unstable cave ceiling collapses. 01441_ Lgt. Cannon destroyed. 01443_ The unstable cave ceiling collapses. 01443_ D-53 Grenadier knocked back. 01446_ as-52547 destroyed. 01447_ The unstable cave ceiling collapses. 01447_ as-81647 destroyed. 01448_ The unstable cave ceiling collapses. 01450_ D-53 Grenadier destroyed. 01451_ The unstable cave ceiling collapses. 01453_ Wheel destroyed. 01458_ The unstable cave ceiling collapses. 01459_ Lgt. Cannon destroyed. 01459_ Lgt. Treads destroyed. 01460_ The unstable cave ceiling collapses. 01461_ Lgt. Cannon destroyed. 01465_ The unstable cave ceiling collapses. Map ----- +----------------------------------------------------+ | ??????????????????????????????????? | | ??????????????????????????????????? | | ??????????????????????????????????? | | ??????????????????????????????????? | | ??????????????????????????????????? | | ??????????????????????????????????? | | ??????????????????????????????????? | | ????????? ????????????????????????? | | ????? ????????????????????????? | | ??? ??????????????????#?????? | | ?# #????????????????# ?????? | | ?? ##?# ??????????# ?????? | | ??? ## ??????????? ?????? | | ???# ??????????? ?????? | | ????# ???????????? ?????? | | ????? ???????????? ?????? | | ?????? # #???????????? #?????? | | ?????? # ####?????????# #?????? | | ??????? ####????#### #?????? | | ??????? ##???# #?????? | | ??##?### ##??# ## ######? | | ?##" # ##?# ## #? | | ?#"" ## ###"####### #? | | ?#]! Y ##%#?????# #? | | ?#[! #?????# ## | | ?#"" Y @ # # #????# | | ??#" # ## #????# | | ?????# # #????#### | | ?????## d # #???????? | | ??????## # ### #???????? | | ???????##?####?# ## #???????? | | | | | | | | | | | | | | | | | | | | | | | | | | | | | | | | | | | | | | | +----------------------------------------------------+ Best States ------------- Heat Dissipation 25 Energy Generation 10 Energy Capacity 250 Matter Stores 300 Matter Capacity 300 Sight Range 16 Terrain Scan Range 16 Terrain Scan Density 10 Evasion (%) 44 Recoil Reduction 2 Item Schematics ----------------- None Robot Schematics ------------------ None Fabricated ------------ Nothing Alien Tech Used ----------------- None Achievements -------------- None Challenges ------------ None Game ------ Seed DroneOmegaNanovents Manual? 0 Play Time 00:24:40 Cumulative 175.6 hours Start 2021.02.04 @ 18:40:41 End 2021.02.05 @ 17:41:37 Sessions 4 Manual Loads 0 Difficulty Rogue Special Mode None Game No. 103 Rogue 103 Adventurer 0 Explorer 0 Win Type - Total 3 Types 3/0/0/0/0/0/0/0/0 Lore% 38 Gallery% 64 Achievement% 50 Wizard Run 0 Options --------- ASCII 0 Keyboard 0 Movement Numpad Keybinds 0 Fullscreen 2 Font 18/TerminusBold Map View 76x50 Tactical HUD 1 Map Filters NONE Filters NONE Steam 1 RUN: 263b38d8-4801-47c0-8086-347757a6f0b3